bitfinex-derivatives/quotes_BTCF0:USTF0_20250907
["timestamp","ask_amount","ask_price","bid_price","bid_amount"]
[1757210840456,1.66184525,110610.0,110600.0,0.00445]
[1757210840661,2.03184525,110610.0,110600.0,0.00445]
[1757210843165,2.03384525,110610.0,110600.0,0.00445]
[1757210843473,2.03484525,110610.0,110600.0,0.00445]
[1757210855980,0.69004151,110610.0,110600.0,0.00445]
[1757210856174,1.51028151,110610.0,110600.0,0.00445]
[1757210856374,2.03488525,110610.0,110600.0,0.00445]
[1757210856685,1.21464525,110610.0,110600.0,0.00445]
[1757210856881,2.03488525,110610.0,110600.0,0.00445]
[1757210859286,1.78488525,110610.0,110600.0,0.00445]
[1757210861688,1.78488525,110610.0,110590.0,0.00033586]
[1757210861689,0.02828,110600.0,110590.0,0.00033586]
[1757210861881,1.42059705,110600.0,110590.0,0.00013586]
[1757210862381,1.49117984,110600.0,110590.0,0.00013586]
[1757210862780,2.31141984,110600.0,110590.0,0.00013586]
[1757210862979,1.94141984,110600.0,110590.0,0.00013586]
[1757210863182,2.25241984,110600.0,110590.0,0.00013586]
[1757210863989,2.25341984,110600.0,110590.0,0.00013586]
[1757210865584,1.17087797,110600.0,110590.0,0.00013586]
[1757210865790,1.99111797,110600.0,110590.0,0.02149586]
[1757210866190,1.99111797,110600.0,110590.0,0.00013586]
[1757210870188,2.25341984,110600.0,110590.0,0.00013586]
[1757210872090,1.74111797,110600.0,110590.0,0.00013586]
[1757210888594,0.39627423,110600.0,110590.0,0.00013586]
[1757210888788,1.74111797,110600.0,110590.0,0.02317586]
[1757210888991,1.74111797,110600.0,110590.0,0.00013586]
[1757210889594,1.47897712,110600.0,110590.0,0.00013586]
[1757210890200,0.65873712,110600.0,110590.0,0.02317586]
[1757210890403,1.72338712,110600.0,110590.0,0.28595586]
[1757210894001,1.72893712,110600.0,110590.0,0.28595586]
[1757210894305,1.72893712,110600.0,110590.0,0.27317586]
[1757210899613,1.72893712,110600.0,110590.0,0.25013586]
[1757210901611,1.72893712,110600.0,110590.0,0.25464586]
[1757210904009,0.90318712,110600.0,110590.0,0.29113586]
[1757210904210,1.72334712,110600.0,110590.0,0.29113586]
[1757210906214,1.72889712,110600.0,110590.0,0.27716586]
[1757210906819,0.03423,110590.0,110580.0,0.02252]
[1757210907017,0.31515172,110590.0,110580.0,0.02252]
[1757210911816,0.31515172,110590.0,110580.0,0.11353649]
[1757210912215,0.31515172,110590.0,110580.0,0.13605649]
[1757210914517,0.31515172,110590.0,110580.0,0.02252]
[1757210922426,1.13523172,110590.0,110580.0,0.02252]
[1757210924326,0.31515172,110590.0,110580.0,0.02252]
[1757210924628,1.13523172,110590.0,110580.0,0.02252]
[1757210926028,0.87276883,110590.0,110580.0,0.02252]
[1757210926220,1.13533172,110590.0,110580.0,0.02252]
[1757210927626,1.13533172,110590.0,110570.0,0.00202426]
[1757210927826,0.29795289,110580.0,110570.0,0.07428426]
[1757210928026,0.29805289,110580.0,110570.0,0.07408426]
[1757210929529,0.29805289,110580.0,110570.0,0.07508426]
[1757210930032,0.29805289,110580.0,110570.0,0.07608426]
[1757210931634,0.03559,110580.0,110570.0,0.07608426]
[1757210931928,0.29805289,110580.0,110570.0,0.07608426]
[1757210932829,0.03559,110580.0,110570.0,0.07608426]
[1757210933030,0.29805289,110580.0,110570.0,0.07608426]
[1757210933530,0.29805289,110580.0,110570.0,0.21067963]
[1757210934425,0.03559,110580.0,110570.0,0.21067963]
[1757210934619,0.29805289,110580.0,110570.0,0.21067963]
[1757210936330,0.03559,110580.0,110570.0,0.21067963]
[1757210936630,0.29805289,110580.0,110570.0,0.21067963]
[1757210942034,1.11669289,110580.0,110570.0,0.21067963]
[1757210942338,0.29805289,110580.0,110570.0,0.21067963]
[1757210942638,1.11809289,110580.0,110570.0,0.21067963]
[1757210943627,1.10455289,110580.0,110570.0,0.21067963]
[1757210943832,0.28451289,110580.0,110570.0,0.21067963]
[1757210944032,0.82777,110580.0,110570.0,0.21067963]
[1757210944539,0.82777,110580.0,110570.0,0.52067963]
[1757210944839,0.82777,110580.0,110570.0,0.26067963]
[1757210948442,0.82777,110580.0,110570.0,0.14683091]
[1757210949741,1.09023289,110580.0,110570.0,0.14683091]
[1757210951442,1.09023157,110580.0,110570.0,0.40929248]
[1757210955048,1.35269314,110580.0,110570.0,0.5231412]
[1757210957847,1.09023157,110580.0,110570.0,0.5231412]
[1757210970362,1.09023157,110580.0,110570.0,0.26067963]
[1757210970563,1.09023157,110580.0,110570.0,0.5231412]
[1757210973066,1.35269314,110580.0,110570.0,0.5231412]
[1757210974965,0.82777,110580.0,110570.0,0.5231412]
[1757210975164,1.09023157,110580.0,110570.0,0.5231412]
[1757210982665,1.09023157,110580.0,110570.0,0.40929248]
[1757210982869,0.82777,110580.0,110570.0,0.40929248]
[1757210983170,1.35269314,110580.0,110570.0,0.40929248]
[1757210983666,1.36579314,110580.0,110570.0,0.40929248]
[1757210992279,1.36579314,110580.0,110570.0,0.5231412]
[1757210994378,1.36579314,110580.0,110570.0,0.40929248]
[1757210995679,1.36579314,110580.0,110570.0,0.14683091]
[1757210996274,1.87815471,110580.0,110560.0,0.1364573]
[1757210996474,0.56007314,110570.0,110560.0,0.1364573]
[1757210996682,0.56007314,110570.0,110560.0,0.11391181]
[1757210997683,0.81007314,110570.0,110560.0,0.11391181]
[1757210997873,0.81007314,110570.0,110550.0,0.11391181]
[1757210998078,1.37999314,110560.0,110550.0,0.46650181]
[1757210998278,0.56007314,110560.0,110550.0,0.46650181]
[1757210998478,1.37999314,110560.0,110550.0,0.46650181]
[1757210999182,0.56007314,110560.0,110550.0,0.46650181]
[1757210999382,1.11753157,110560.0,110550.0,0.46650181]
[1757211000187,1.37999314,110560.0,110550.0,0.46750181]
[1757211000484,1.49554275,110560.0,110550.0,0.46750181]
[1757211000682,0.67562275,110560.0,110550.0,0.46750181]
[1757211000883,1.49554275,110560.0,110550.0,0.46750181]
[1757211001485,1.49554275,110560.0,110550.0,0.35359]
[1757211001884,1.49554275,110560.0,110550.0,0.46750181]
[1757211002586,0.67562275,110560.0,110550.0,0.46750181]
[1757211002888,1.49558275,110560.0,110550.0,0.48053181]
[1757211004386,1.49558275,110560.0,110550.0,0.36662]
[1757211004586,0.67562275,110560.0,110550.0,0.36662]
[1757211004886,1.49558275,110560.0,110550.0,0.36662]
[1757211005284,0.67562275,110560.0,110550.0,0.36662]
[1757211005485,1.49558275,110560.0,110550.0,0.36662]
[1757211011488,1.23324922,110560.0,110550.0,0.36662]
[1757211013989,1.23324922,110560.0,110550.0,0.48053181]
[1757211014490,1.23324922,110560.0,110550.0,0.36662]
[1757211019688,1.49583883,110560.0,110550.0,0.001]
[1757211019889,1.49593883,110560.0,110550.0,0.001]
[1757211020086,1.74593883,110560.0,110550.0,0.001]
[1757211021094,0.01305,110550.0,110540.0,0.02307]
[1757211021294,0.57913565,110550.0,110540.0,0.02297]
[1757211023396,0.31654604,110550.0,110540.0,0.02297]
[1757211024196,0.31654604,110550.0,110540.0,0.02397]
[1757211027300,0.31654604,110550.0,110540.0,0.13788181]
[1757211028401,1.12874604,110550.0,110540.0,0.13788181]
[1757211028999,1.12874604,110550.0,110540.0,0.02397]
[1757211035002,1.12874604,110550.0,110540.0,0.13788181]
[1757211037206,1.12874604,110550.0,110540.0,0.02397]
[1757211042312,1.49874604,110550.0,110540.0,0.02397]
[1757211045714,0.42395643,110550.0,110540.0,0.04543144]
[1757211045906,1.49345604,110550.0,110540.0,0.05811144]
[1757211049913,1.49345604,110550.0,110540.0,0.17202325]
[1757211050815,1.49345604,110550.0,110540.0,0.05811144]
[1757211054910,0.65714604,110550.0,110540.0,0.0227]
[1757211055113,1.73969565,110550.0,110540.0,0.0227]
[1757211055320,1.47710604,110550.0,110540.0,0.0227]
[1757211056318,1.46345604,110550.0,110540.0,0.0365]
[1757211057524,1.46345604,110550.0,110540.0,0.05761776]
[1757211059025,1.47710604,110550.0,110540.0,0.05761776]
[1757211062329,1.45887961,110550.0,110540.0,0.05761776]
[1757211062933,1.19629,110550.0,110540.0,0.05761776]
[1757211063129,1.45887961,110550.0,110540.0,0.05761776]
[1757211065125,0.29891961,110550.0,110540.0,0.05761776]
[1757211065332,1.48891961,110550.0,110540.0,0.05761776]
[1757211066326,0.02268,110550.0,110540.0,0.57020737]
[1757211066532,0.84268,110550.0,110540.0,0.57020737]
[1757211066927,0.84268,110550.0,110540.0,0.68411918]
[1757211069330,1.19268,110550.0,110540.0,0.68411918]
[1757211069536,0.84268,110550.0,110540.0,0.68411918]
[1757211070035,1.17268,110550.0,110540.0,0.68411918]
[1757211070536,1.17268,110550.0,110540.0,0.42152957]
[1757211072039,1.17268,110550.0,110540.0,0.68411918]
[1757211072235,0.84268,110550.0,110540.0,0.68411918]
[1757211072440,0.84268,110550.0,110540.0,0.57020737]
[1757211072636,0.84268,110550.0,110540.0,0.68411643]
[1757211073446,1.10525966,110550.0,110540.0,0.68410648]
[1757211073736,1.10525966,110550.0,110540.0,0.57019742]
[1757211074442,1.10525966,110550.0,110540.0,0.6841011]
[1757211077252,0.84268,110550.0,110540.0,0.6841011]
[1757211077448,1.10525966,110550.0,110540.0,0.6841011]
[1757211079549,1.43525966,110550.0,110540.0,0.6841011]
[1757211079852,1.10525966,110550.0,110540.0,0.6841011]
[1757211083854,0.84268,110550.0,110540.0,0.6841011]
[1757211084052,1.10525966,110550.0,110540.0,0.6841011]
[1757211084353,1.42525966,110550.0,110540.0,0.6841011]
[1757211084554,1.45525966,110550.0,110540.0,0.6841011]
[1757211086556,1.10525966,110550.0,110540.0,0.6841011]
[1757211087262,1.47525966,110550.0,110540.0,0.6841011]
[1757211087452,1.10525966,110550.0,110540.0,0.6841011]
[1757211088760,1.10525966,110550.0,110540.0,0.57019742]
[1757211091161,1.10525966,110550.0,110540.0,0.68410939]
[1757211093462,1.10525966,110550.0,110540.0,0.57019742]
[1757211095968,1.10525966,110550.0,110540.0,0.68415324]
[1757211096769,1.10525966,110550.0,110540.0,0.57019742]
[1757211098070,0.84268,110550.0,110540.0,0.57019742]
[1757211098277,1.10525966,110550.0,110540.0,0.57019742]
[1757211099271,1.10525966,110550.0,110540.0,0.32019742]
[1757211105470,0.02268,110550.0,110540.0,0.94277708]
[1757211105667,0.0001,110550.0,110540.0,0.90277708]
[1757211105862,0.0001,110550.0,110540.0,1.01676831]
[1757211106169,0.0001,110550.0,110540.0,1.26676831]
[1757211106672,0.0001,110550.0,110540.0,1.15277708]
[1757211108575,0.0001,110550.0,110540.0,1.26664188]
[1757211109375,0.0001,110550.0,110540.0,1.15277708]
[1757211114282,0.0001,110550.0,110540.0,1.97257708]
[1757211114484,0.0001,110550.0,110540.0,2.32560584]
[1757211114784,0.0001,110560.0,110550.0,0.56044932]
[1757211115075,0.28553966,110570.0,110560.0,0.03529]
[1757211115282,0.28543966,110570.0,110560.0,0.41166497]
[1757211116682,0.28843966,110570.0,110560.0,0.41166497]
[1757211117384,0.28743966,110570.0,110560.0,0.41166497]
[1757211117984,0.28743966,110570.0,110560.0,0.79166497]
[1757211118283,0.02486,110570.0,110560.0,0.79166497]
[1757211118484,0.28643966,110570.0,110560.0,0.79166497]
[1757211118785,0.28643966,110570.0,110560.0,0.41166497]
[1757211119786,0.28643966,110570.0,110560.0,0.73166497]
[1757211120585,0.28643966,110570.0,110560.0,0.41166497]
[1757211121384,0.28643966,110570.0,110560.0,0.78166497]
[1757211121885,0.28643966,110570.0,110560.0,0.41166497]
[1757211122085,0.28643966,110570.0,110560.0,0.67424463]
[1757211122990,0.28643966,110570.0,110560.0,1.04424463]
[1757211123288,0.28643966,110570.0,110560.0,0.67424463]
[1757211123588,0.28643966,110570.0,110560.0,0.41166497]
[1757211124689,0.28643966,110570.0,110560.0,0.67424463]
[1757211125691,0.02386,110570.0,110560.0,0.67424463]
[1757211125990,0.001,110570.0,110560.0,1.01424463]
[1757211126189,0.001,110570.0,110560.0,0.90044932]
[1757211127090,0.001,110570.0,110560.0,0.90144932]
[1757211127893,0.26267966,110580.0,110560.0,0.90144932]
[1757211128091,0.26267966,110580.0,110570.0,0.29786966]
[1757211128092,0.28553966,110580.0,110570.0,0.29786966]
[1757211128294,0.28543966,110580.0,110570.0,0.29786966]
[1757211128489,0.02286,110580.0,110570.0,0.29786966]
[1757211128689,0.28543966,110580.0,110570.0,0.29786966]
[1757211129790,0.28643966,110580.0,110570.0,0.65786966]
[1757211131689,0.02386,110580.0,110570.0,0.65786966]
[1757211131896,0.28643966,110580.0,110570.0,0.65786966]
[1757211132695,0.28643966,110580.0,110570.0,0.29786966]
[1757211132896,0.02386,110580.0,110570.0,0.29786966]
[1757211133095,0.28643966,110580.0,110570.0,0.29786966]
[1757211133396,0.28653966,110580.0,110570.0,0.41166497]
[1757211134295,0.28653966,110580.0,110570.0,0.29786966]
[1757211134596,0.28653966,110580.0,110570.0,0.41166497]
[1757211135497,0.02396,110580.0,110570.0,0.41152888]
[1757211140598,0.38396,110580.0,110570.0,0.41152888]
[1757211140798,0.02396,110580.0,110570.0,0.14908531]
[1757211142104,0.02396,110580.0,110570.0,0.41152888]
[1757211145506,0.02396,110580.0,110570.0,0.29773357]
[1757211148202,0.02396,110580.0,110570.0,0.65773357]
[1757211149009,0.02396,110580.0,110570.0,0.31773357]
[1757211149402,0.02396,110580.0,110570.0,0.29773357]
[1757211149706,0.02396,110580.0,110570.0,0.74152888]
[1757211150506,0.02396,110580.0,110570.0,0.43152888]
[1757211151709,0.02396,110580.0,110570.0,0.74152888]
[1757211152008,0.02396,110580.0,110570.0,0.43152888]
[1757211152198,0.02396,110580.0,110570.0,0.41152888]
[1757211155506,0.02396,110580.0,110570.0,0.14908531]
[1757211155806,0.02396,110580.0,110570.0,0.41529]
[1757211156007,0.02396,110580.0,110570.0,0.67773357]
[1757211156508,0.02396,110580.0,110570.0,0.31773357]
[1757211157110,0.02396,110580.0,110570.0,0.63773357]
[1757211157505,0.02396,110580.0,110570.0,0.75170673]
[1757211158609,0.02396,110580.0,110570.0,0.43170673]
[1757211158904,0.02396,110580.0,110570.0,0.41170673]
[1757211159108,0.02396,110580.0,110570.0,0.29773357]
[1757211165412,0.02396,110580.0,110570.0,0.31773357]
[1757211165918,0.02396,110580.0,110570.0,0.61773357]
[1757211168122,0.02396,110580.0,110570.0,0.63912733]
[1757211168415,0.0011,110580.0,110570.0,0.63912733]
[1757211168621,0.0011,110580.0,110570.0,0.88912733]
[1757211170112,0.0011,110580.0,110570.0,2.0613954]
[1757211170312,0.00023586,110590.0,110580.0,0.01323]
[1757211170516,0.00013586,110590.0,110580.0,0.63897357]
[1757211172818,0.00013586,110590.0,110580.0,0.90141714]
[1757211176919,0.00013586,110590.0,110580.0,1.01514074]
[1757211177315,0.00013586,110590.0,110580.0,0.90141714]
[1757211179419,0.00013586,110590.0,110580.0,1.72069714]
[1757211181026,0.00013586,110590.0,110580.0,0.90141714]
[1757211181213,0.00013586,110590.0,110580.0,1.72065714]
[1757211181821,0.00013586,110590.0,110580.0,1.19577]
[1757211182022,0.00013586,110590.0,110580.0,1.72065714]
[1757211184822,0.00013586,110590.0,110580.0,1.72061714]
[1757211188431,0.00013586,110590.0,110580.0,0.90141714]
[1757211188621,0.00013586,110590.0,110580.0,1.72061714]
[1757211193233,0.00013586,110590.0,110580.0,1.72161714]
[1757211193434,0.00023586,110590.0,110580.0,1.72161714]
[1757211193933,0.00023586,110590.0,110580.0,1.72261714]
[1757211194928,0.00023586,110590.0,110580.0,1.83628156]
[1757211195735,0.00023586,110590.0,110580.0,1.72261714]
[1757211196835,0.00023586,110590.0,110580.0,1.83628156]
[1757211197438,0.00023586,110590.0,110580.0,1.83607808]
[1757211199436,0.00023586,110590.0,110580.0,1.01687808]
[1757211199636,0.00023586,110590.0,110580.0,1.83599808]
[1757211203241,0.00023586,110590.0,110580.0,0.49219442]
[1757211203439,0.53586769,110590.0,110580.0,0.15219442]
[1757211203638,0.53586769,110590.0,110580.0,0.74905625]
[1757211203943,0.53586769,110590.0,110580.0,0.63539183]
[1757211204838,0.53586769,110590.0,110580.0,0.74905625]
[1757211205343,0.53586769,110590.0,110580.0,0.63539183]
[1757211205844,0.27352586,110590.0,110580.0,0.74905625]
[1757211206044,0.53586769,110590.0,110580.0,0.74905625]
[1757211206243,0.53586769,110590.0,110580.0,1.01139808]
[1757211209448,0.53586769,110590.0,110580.0,0.89773366]
[1757211210950,0.27352586,110590.0,110580.0,0.89773366]
[1757211212554,0.53586769,110590.0,110580.0,0.89773366]
[1757211216265,0.53586769,110590.0,110580.0,1.01157372]
[1757211217557,0.53586769,110590.0,110580.0,0.74923189]
[1757211219258,0.28586769,110590.0,110580.0,0.74923189]
[1757211219758,0.28586769,110590.0,110580.0,1.01157372]
[1757211220859,0.28586769,110590.0,110580.0,0.89773366]
[1757211222858,0.28586769,110590.0,110580.0,0.71157594]
[1757211223760,0.28586769,110590.0,110580.0,0.59773366]
[1757211224958,0.02352586,110590.0,110580.0,0.59773366]
[1757211225158,0.28586769,110590.0,110580.0,0.59773366]
[1757211232058,0.28586769,110590.0,110580.0,0.33539183]
[1757211232261,0.28586769,110590.0,110580.0,0.59773366]
[1757211232463,0.28586769,110590.0,110580.0,0.07305]
[1757211232763,0.28586769,110590.0,110580.0,0.59773366]
[1757211236965,0.28586769,110590.0,110580.0,0.33539183]
[1757211238168,0.28586769,110590.0,110580.0,0.59773366]
[1757211239966,0.02352586,110590.0,110580.0,0.59773366]
[1757211243167,0.28586769,110590.0,110580.0,0.59773366]
[1757211243362,0.02352586,110590.0,110580.0,0.87773366]
[1757211246480,0.00023586,110590.0,110580.0,0.87773366]
[1757211259489,0.00023586,110590.0,110580.0,0.87772508]
[1757211260484,0.00023586,110590.0,110580.0,0.99163997]
[1757211268991,0.00023586,110590.0,110580.0,1.81159997]
[1757211270495,0.00023586,110590.0,110580.0,1.69768508]
[1757211281483,0.00023586,110590.0,110580.0,1.8601767]
[1757211282889,0.00023586,110590.0,110580.0,1.69768508]
[1757211283298,0.00023586,110590.0,110580.0,1.69732508]
[1757211283696,0.02245586,110590.0,110580.0,1.69732508]
[1757211284096,0.02245586,110590.0,110580.0,1.43498754]
[1757211284696,0.02245586,110590.0,110580.0,1.69732508]
[1757211284996,0.00023586,110590.0,110580.0,1.69732508]
[1757211294300,0.00023586,110590.0,110580.0,1.8598167]
[1757211295891,0.00023586,110590.0,110580.0,1.69732508]
[1757211296701,0.00023586,110590.0,110580.0,1.86005903]
[1757211297602,0.00023586,110590.0,110580.0,1.69732508]
[1757211298603,0.00023586,110590.0,110580.0,1.86005902]
[1757211303412,0.00023586,110590.0,110580.0,1.97397282]
[1757211304210,0.00023586,110590.0,110580.0,1.81123888]
[1757211311017,0.00023586,110590.0,110580.0,0.99163888]
[1757211311207,0.00023586,110590.0,110580.0,1.81095888]
[1757211312512,0.00023586,110590.0,110580.0,0.99163888]
[1757211312713,0.00023586,110590.0,110580.0,1.81095888]
[1757211313110,0.00023586,110590.0,110580.0,1.69704508]
[1757211317015,0.00023586,110590.0,110580.0,1.85977902]
[1757211319519,0.00023586,110590.0,110580.0,1.69706032]
[1757211323521,0.00023586,110590.0,110580.0,1.85979426]
[1757211325923,0.00023586,110590.0,110580.0,1.69706032]
[1757211327019,0.00023586,110590.0,110580.0,0.87774032]
[1757211327319,0.02192586,110590.0,110580.0,1.69706032]
[1757211327719,0.02192586,110590.0,110580.0,0.87774032]
[1757211327920,0.02192586,110590.0,110580.0,1.69706032]
[1757211329030,0.02192586,110590.0,110580.0,1.85979426]
[1757211330628,0.02192586,110590.0,110580.0,1.69706032]
[1757211334332,0.02192586,110590.0,110580.0,0.87774032]
[1757211334932,0.56604732,110590.0,110580.0,0.46697532]
[1757211335129,0.55234732,110590.0,110580.0,0.46697532]
[1757211335330,0.55234732,110590.0,110580.0,0.61539516]
[1757211335732,0.55234732,110590.0,110580.0,0.72932048]
[1757211338336,0.55234732,110590.0,110580.0,0.61539516]
[1757211338933,0.55234732,110590.0,110580.0,0.61439516]
[1757211339335,0.30234732,110590.0,110580.0,0.61439516]
[1757211341239,0.30234732,110590.0,110580.0,0.61339516]
[1757211343641,0.30234732,110590.0,110580.0,0.35105]
[1757211343840,0.30234732,110590.0,110580.0,0.61339516]
[1757211344346,0.31604732,110590.0,110580.0,0.72717512]
[1757211345240,0.31604732,110590.0,110580.0,0.61339516]
[1757211346441,0.31604732,110590.0,110580.0,0.72716582]
[1757211349943,0.31604732,110590.0,110580.0,0.61339516]
[1757211350350,0.31604732,110590.0,110580.0,0.72715091]
[1757211352447,0.31604732,110590.0,110580.0,0.61339516]
[1757211354247,0.31604732,110590.0,110580.0,0.72714491]
[1757211356350,0.31604732,110590.0,110580.0,0.46479975]
[1757211356554,0.31604732,110590.0,110580.0,0.61339516]
[1757211357446,0.31604732,110590.0,110580.0,0.35105]
[1757211357653,0.56604732,110590.0,110580.0,0.42828012]
[1757211358151,0.56604732,110590.0,110580.0,0.06452]
[1757211359351,0.82839248,110590.0,110570.0,0.13496952]
[1757211359552,1.37942032,110580.0,110570.0,0.13496952]
[1757211359755,1.37952032,110580.0,110570.0,0.13486952]
[1757211360456,1.37952032,110580.0,110570.0,0.0211094]
[1757211360956,1.37952032,110580.0,110570.0,0.0440894]
[1757211363759,0.55956032,110580.0,110570.0,0.0440894]
[1757211363954,1.38156032,110580.0,110570.0,0.0440894]
[1757211365357,0.56156032,110580.0,110570.0,0.0440894]
[1757211365558,0.85679,110580.0,110570.0,0.0440894]
[1757211365758,1.11913516,110580.0,110570.0,0.0440894]
[1757211365958,1.11913516,110580.0,110570.0,0.30643456]
[1757211366159,1.11913516,110580.0,110570.0,0.0440894]
[1757211368059,1.38148032,110580.0,110570.0,0.0440894]
[1757211372863,0.56156032,110580.0,110570.0,0.0440894]
[1757211373067,1.11909516,110580.0,110570.0,0.30643456]
[1757211374058,1.38144032,110580.0,110570.0,0.30643456]
[1757211374265,1.11909516,110580.0,110570.0,0.30643456]
[1757211374765,1.11909516,110580.0,110570.0,0.0440894]
[1757211375164,1.38144032,110580.0,110570.0,0.0440894]
[1757211376770,0.85675,110580.0,110570.0,0.0440894]
[1757211376969,1.38144032,110580.0,110570.0,0.0440894]
[1757211378870,1.38144032,110580.0,110570.0,0.30643456]
[1757211379367,1.38144032,110580.0,110570.0,0.0440894]
[1757211381473,1.11925587,110580.0,110570.0,0.0440894]
[1757211385777,0.85675,110580.0,110570.0,0.15784952]
[1757211386077,1.11925587,110580.0,110570.0,0.15784952]
[1757211389174,0.85675,110580.0,110570.0,0.15784952]
[1757211389372,1.11925587,110580.0,110570.0,0.15784952]
[1757211390771,1.11925587,110580.0,110570.0,0.13674012]
[1757211393182,1.11925587,110580.0,110570.0,0.11376012]
[1757211394776,1.38176174,110580.0,110560.0,0.0001]
[1757211394977,0.29742587,110570.0,110560.0,0.3301]
[1757211395178,0.31569482,110570.0,110560.0,0.33]
[1757211395589,0.31569482,110570.0,110560.0,0.35315]
[1757211395885,1.13529482,110570.0,110560.0,0.35315]
[1757211396285,0.87278895,110570.0,110560.0,0.35315]
[1757211396484,0.05318895,110570.0,110560.0,0.35315]
[1757211396680,1.13529482,110570.0,110560.0,0.35315]
[1757211397289,1.13629482,110570.0,110560.0,0.02315]
[1757211397788,0.31669482,110570.0,110560.0,0.02315]
[1757211397990,1.13629482,110570.0,110560.0,0.02315]
[1757211398286,0.05418895,110570.0,110560.0,0.02315]
[1757211398590,0.48578895,110570.0,110560.0,0.02315]
[1757211398888,0.74829482,110570.0,110560.0,0.02315]
[1757211402589,0.31769482,110570.0,110560.0,0.02315]
[1757211402891,1.13737482,110570.0,110560.0,0.02315]
[1757211403489,0.31769482,110570.0,110560.0,0.02315]
[1757211403688,0.99957482,110570.0,110560.0,0.02315]
[1757211406291,0.73706895,110570.0,110560.0,0.02315]
[1757211406594,0.99957482,110570.0,110560.0,0.13700276]
[1757211407288,0.31769482,110570.0,110560.0,0.13700276]
[1757211407492,1.13733482,110570.0,110560.0,0.13700276]
[1757211410689,0.86161895,110570.0,110560.0,0.41347863]
[1757211414498,0.86161895,110570.0,110560.0,0.29962587]
[1757211415793,0.86161895,110570.0,110560.0,0.41348164]
[1757211417600,1.13768482,110570.0,110560.0,0.11385577]
[1757211419098,1.13768482,110570.0,110550.0,0.41025135]
[1757211419294,0.29853587,110560.0,110550.0,0.17027548]
[1757211419501,0.29863587,110560.0,110550.0,0.17017548]
[1757211423606,0.03613,110560.0,110550.0,0.17017548]
[1757211425703,0.02257,110560.0,110550.0,0.17017548]
[1757211426298,0.28507587,110560.0,110550.0,0.17017548]
[1757211429306,0.28507587,110560.0,110550.0,0.05631971]
[1757211429806,0.02257,110560.0,110550.0,0.05631971]
[1757211430103,0.28507587,110560.0,110550.0,0.05631971]
[1757211431105,0.02257,110560.0,110550.0,0.05631971]
[1757211432305,0.28507587,110560.0,110550.0,0.05631971]
[1757211433208,0.28507587,110560.0,110550.0,0.17025745]
[1757211436104,0.02257,110560.0,110550.0,0.05631971]
[1757211438412,0.28507587,110560.0,110550.0,0.05631971]
[1757211443508,0.2851344,110560.0,110550.0,0.31888411]
[1757211445813,0.2851344,110560.0,110550.0,0.43282185]
[1757211446212,0.2851344,110560.0,110550.0,0.31888411]
[1757211449318,0.2851344,110560.0,110550.0,0.05631971]
[1757211449519,0.2851344,110560.0,110550.0,0.31888411]
[1757211449722,0.2851344,110560.0,110550.0,0.43285426]
[1757211450517,0.2851344,110560.0,110550.0,0.31888411]
[1757211452122,0.2851344,110560.0,110550.0,0.43285312]
[1757211452518,0.02257,110560.0,110550.0,0.31888411]
[1757211452821,0.2851344,110560.0,110550.0,0.31888411]
[1757211454817,1.1046544,110560.0,110550.0,0.31888411]
[1757211457527,1.1046544,110560.0,110550.0,0.43287202]
[1757211458528,1.1046544,110560.0,110550.0,0.17030762]
[1757211458727,1.1046544,110560.0,110550.0,0.43287202]
[1757211464433,1.1046544,110560.0,110550.0,0.17030762]
[1757211464630,1.1046544,110560.0,110550.0,0.43287202]
[1757211464824,1.3808688,110560.0,110550.0,0.31888411]
[1757211465026,1.3808688,110560.0,110550.0,0.02253]
[1757211476449,1.3808688,110560.0,110550.0,0.13651791]
[1757211486154,1.3808688,110560.0,110550.0,0.02253]
[1757211490560,1.3808688,110560.0,110550.0,0.13651791]
[1757211497069,0.85574,110560.0,110550.0,0.13651791]
[1757211497370,1.3808688,110560.0,110550.0,0.13651791]
[1757211503478,0.5613488,110560.0,110550.0,0.13651791]
[1757211503679,1.1182644,110560.0,110550.0,0.59245231]
[1757211504479,1.3808288,110560.0,110550.0,0.59245231]
[1757211504980,1.3808288,110560.0,110550.0,0.32988791]
[1757211505173,1.3808288,110560.0,110550.0,0.59245231]
[1757211505477,1.11826885,110560.0,110550.0,0.32988791]
[1757211505870,1.11826885,110560.0,110550.0,0.31651791]
[1757211508180,0.8557,110560.0,110550.0,0.31651791]
[1757211508379,1.11826885,110560.0,110550.0,0.31651791]
[1757211515490,1.1368647,110560.0,110550.0,0.31651791]
[1757211517890,1.1368647,110560.0,110550.0,0.20253]
[1757211522500,1.1368647,110560.0,110550.0,0.02253]
[1757211524497,0.3173847,110560.0,110550.0,0.02253]
[1757211524698,1.1253047,110560.0,110550.0,0.02253]
[1757211524892,1.1367847,110560.0,110550.0,0.02253]
[1757211528004,1.1367847,110560.0,110550.0,0.13651791]
[1757211531204,1.1367847,110560.0,110550.0,0.02253]
[1757211541310,1.1367847,110560.0,110550.0,0.13651791]
[1757211542412,0.3173847,110560.0,110550.0,0.13651791]
[1757211542716,1.1367447,110560.0,110550.0,0.13651791]
[1757211543519,0.3173847,110560.0,110550.0,0.13651791]
[1757211543817,1.0801847,110560.0,110550.0,0.13651791]
[1757211548120,0.3173847,110560.0,110550.0,0.13651791]
[1757211548417,1.1367047,110560.0,110550.0,0.13651791]
[1757211556123,0.3173847,110560.0,110550.0,0.13651791]
[1757211556323,1.1366647,110560.0,110550.0,0.13651791]
[1757211557427,1.1366647,110560.0,110550.0,0.02253]
[1757211560825,0.3173847,110560.0,110550.0,0.02253]
[1757211561024,1.1366647,110560.0,110550.0,0.02253]
[1757211562125,1.1366647,110560.0,110550.0,0.13651791]
[1757211563026,1.1366647,110560.0,110550.0,0.02253]
[1757211564125,0.3173847,110560.0,110550.0,0.02253]
[1757211564324,1.1366647,110560.0,110550.0,0.02253]
[1757211567432,1.39930233,110560.0,110550.0,0.02253]
[1757211568233,1.39930233,110560.0,110540.0,0.12731791]
[1757211568534,0.29855324,110550.0,110540.0,0.41112115]
[1757211568844,0.29865324,110550.0,110540.0,0.41102115]
[1757211569633,0.29865324,110550.0,110540.0,0.15041791]
[1757211569933,0.29865324,110550.0,110540.0,0.41302115]
[1757211570234,0.30888554,110550.0,110540.0,0.41302115]
[1757211570431,0.30888554,110550.0,110540.0,0.15041791]
[1757211570631,0.30888554,110550.0,110540.0,0.13718791]
[1757211570831,0.30888554,110550.0,110540.0,0.13818791]
[1757211573538,0.30888554,110550.0,110540.0,0.0242]
[1757211576039,1.12808554,110550.0,110540.0,0.0242]
[1757211581145,0.8654823,110550.0,110540.0,0.0242]
[1757211581332,1.12808554,110550.0,110540.0,0.0242]
[1757211581742,1.12808554,110550.0,110540.0,0.04250203]
[1757211583846,1.12804554,110550.0,110540.0,0.04250203]
[1757211584642,0.30888554,110550.0,110540.0,0.04250203]
[1757211584942,1.12804554,110550.0,110540.0,0.04250203]
[1757211586844,1.12804554,110550.0,110540.0,0.15650916]